fUSD/lending_fUSD_20240104
["ID","MTS","AMOUNT","RATE_DAILY","PERIOD"]
[310170855,1704387060924,-500.0,0.00033972,2]
[310170856,1704387060935,-500.0,0.00033972,2]
[310170857,1704387060947,-1120.22,0.00033972,2]
[310170858,1704387060957,-1243.11,0.00033972,2]
[310170859,1704387060968,-685.07,0.00033972,2]
[310170860,1704387060978,-500.0,0.00033972,2]
[310170861,1704387060988,-500.0,0.00033972,2]
[310170862,1704387060999,-500.0,0.00033972,2]
[310170863,1704387061010,-500.0,0.00033972,2]
[310170864,1704387061021,-1459.02,0.00033972,2]
[310170865,1704387061031,-3337.4,0.00033972,2]
[310170866,1704387061042,-587.56,0.00033972,2]
[310170867,1704387061053,-606.43083218,0.00033972,2]
[310170868,1704387061064,-500.0,0.00033972,2]
[310170869,1704387061074,-500.0,0.00033972,2]
[310170870,1704387061084,-1169.43,0.00033972,2]
[310170871,1704387061095,-500.0,0.00033972,2]
[310170872,1704387061109,-500.0,0.00033972,2]
[310170873,1704387061119,-500.0,0.00033972,2]
[310170874,1704387061129,-977.43,0.00033972,2]
[310170875,1704387061138,-1254.68,0.00033972,2]
[310170876,1704387061149,-9381.09,0.00033972,2]
[310170877,1704387061159,-500.0,0.00033972,2]
[310170878,1704387061168,-3545.15,0.00033972,2]
[310170879,1704387061178,-500.0,0.00033972,2]
[310170880,1704387061188,-500.0,0.00033972,2]
[310170881,1704387061198,-500.0,0.00033972,2]
[310170882,1704387061207,-500.0,0.00033972,2]
[310170883,1704387061217,-500.0,0.00033972,2]
[310170884,1704387061227,-739.42,0.00033972,2]
[310170885,1704387061236,-500.0,0.00033972,2]
[310170886,1704387061246,-500.0,0.00033972,2]
[310170887,1704387061255,-1879.53,0.00033972,2]
[310170888,1704387061264,-500.0,0.00033972,2]
[310170889,1704387061274,-1434.27,0.00033972,2]
[310170890,1704387061283,-500.0,0.00033972,2]
[310170891,1704387061293,-500.0,0.00033972,2]
[310170892,1704387061304,-500.0,0.00033972,2]
[310170893,1704387061314,-588.68,0.00033972,2]
[310170894,1704387061325,-500.0,0.00033972,2]
[310170895,1704387061334,-1466.29,0.00033972,2]
[310170896,1704387061343,-500.0,0.00033972,2]
[310170897,1704387061353,-500.0,0.00033972,2]
[310170898,1704387061365,-500.0,0.00033972,2]
[310170899,1704387061375,-500.0,0.00033972,2]
[310170900,1704387061385,-500.0,0.00033972,2]
[310170901,1704387061394,-500.0,0.00033972,2]
[310170902,1704387061407,-500.0,0.00033972,2]
[310170903,1704387061417,-992.03,0.00033972,2]
[310170904,1704387061426,-500.0,0.00033972,2]
[310170905,1704387061436,-500.0,0.00033972,2]
[310170906,1704387061447,-1033.59,0.00033972,2]
[310170907,1704387061456,-500.0,0.00033972,2]
[310170908,1704387061465,-500.0,0.00033972,2]
[310170909,1704387061476,-1201.04,0.00033972,2]
[310170910,1704387061485,-500.0,0.00033972,2]
[310170911,1704387061495,-500.0,0.00033972,2]
[310170912,1704387061504,-500.0,0.00033972,2]
[310170913,1704387061513,-500.0,0.00033972,2]
[310170914,1704387061524,-500.0,0.00033972,2]
[310170915,1704387061534,-500.0,0.00033972,2]
[310170916,1704387061544,-4171.26,0.00033972,2]
[310170917,1704387061555,-500.0,0.00033972,2]
[310170918,1704387061565,-500.0,0.00033972,2]
[310170919,1704387061575,-500.0,0.00033972,2]
[310170920,1704387061584,-2166.82,0.00033972,2]
[310170921,1704387061594,-2349.11,0.00033972,2]
[310170922,1704387061603,-523.86,0.00033972,2]
[310170923,1704387061614,-500.0,0.00033972,2]
[310170924,1704387061624,-500.0,0.00033972,2]
[310170925,1704387061633,-692.86,0.00033972,2]
[310170926,1704387061642,-5441.26,0.00033972,2]
[310170927,1704387061651,-754.91,0.00033972,2]
[310170928,1704387061660,-653.38,0.00033972,2]
[310170929,1704387061670,-2546.5,0.00033972,2]
[310170930,1704387061678,-588.1,0.00033972,2]
[310170931,1704387061688,-518.48,0.00033972,2]
[310170932,1704387061697,-500.0,0.00033972,2]
[310170933,1704387061706,-1807.01,0.00033972,2]
[310170934,1704387061717,-1302.38,0.00033972,2]
[310170935,1704387061727,-500.0,0.00033972,2]
[310170936,1704387061737,-500.0,0.00033972,2]
[310170937,1704387061747,-500.0,0.00033972,2]
[310170938,1704387061756,-2560.04,0.00033972,2]
[310170939,1704387061766,-500.0,0.00033972,2]
[310170940,1704387061776,-500.0,0.00033972,2]
[310170941,1704387061787,-779.87,0.00033972,2]
[310170942,1704387061796,-500.0,0.00033972,2]
[310170943,1704387061806,-734.27,0.00033972,2]
[310170944,1704387061815,-1365.24,0.00033972,2]
[310170945,1704387061824,-870.65,0.00033972,2]
[310170946,1704387061834,-1231.92,0.00033972,2]
[310170947,1704387061844,-2217.69,0.00033972,2]
[310170948,1704387061854,-500.0,0.00033972,2]
[310170949,1704387061865,-500.0,0.00033972,2]
[310170950,1704387061874,-500.0,0.00033972,2]
[310170951,1704387061884,-1017.62,0.00033972,2]
[310170952,1704387061893,-1032.63,0.00033972,2]
[310170953,1704387061903,-534.29,0.00033972,2]
[310170954,1704387061913,-906.71,0.00033972,2]
[310170955,1704387061923,-500.0,0.00033972,2]
[310170956,1704387061933,-159.7072186,0.00033972,2]
[310170957,1704387061943,-596.31,0.00033972,2]
[310170958,1704387061952,-2137.75,0.00033972,2]
[310170959,1704387061962,-500.0,0.00033972,2]
[310170960,1704387061972,-3323.94,0.00033972,2]
[310170961,1704387061981,-509.24,0.00033972,2]
[310170962,1704387061990,-618.62,0.00033972,2]
[310170963,1704387062000,-500.0,0.00033972,2]
[310170964,1704387062009,-635.64,0.00033972,2]
[310170965,1704387062021,-500.0,0.00033972,2]
[310170966,1704387062031,-3513.86,0.00033972,2]
[310170967,1704387062041,-7113.29,0.00033972,2]
[310170968,1704387062051,-500.0,0.00033972,2]
[310170969,1704387062061,-500.0,0.00033972,2]
[310170970,1704387062071,-1511.06,0.00033972,2]
[310170971,1704387062082,-500.0,0.00033972,2]
[310170972,1704387062092,-1218.23,0.00033972,2]
[310170973,1704387062103,-688.17,0.00033972,2]
[310170974,1704387062115,-8136.36,0.00033972,2]
[310170975,1704387062126,-650.31,0.00033972,2]
[310170976,1704387062136,-500.0,0.00033972,2]
[310170977,1704387062147,-500.0,0.00033972,2]
[310170978,1704387062156,-500.0,0.00033972,2]
[310170979,1704387062169,-662.77,0.00033972,2]
[310170980,1704387062180,-583.86,0.00033972,2]
[310170981,1704387062192,-500.0,0.00033972,2]
[310170982,1704387062203,-694.23,0.00033972,2]
[310170983,1704387062213,-500.0,0.00033972,2]
[310170984,1704387062223,-500.0,0.00033972,2]
[310170985,1704387062233,-639.12019715,0.00033972,2]
[310170986,1704387062243,-3401.65,0.00033972,2]
[310170987,1704387062253,-500.0,0.00033972,2]
[310170988,1704387062263,-999.00230066,0.00033972,2]
[310170989,1704387062392,-414.78805946,0.00033972,2]
[310170990,1704387062404,-1021.02963988,0.00033972,2]
[310170991,1704387062414,-500.0,0.00033972,2]
[310170992,1704387062425,-500.0,0.00033972,2]
[310170993,1704387062436,-500.0,0.00033972,2]
[310170994,1704387062446,-450.80995925,0.00033972,2]
[310170995,1704387062991,-155.0,0.00033149,4]
[310170996,1704387063000,-49.19004075,0.00033972,2]
[310170997,1704387063009,-500.0,0.00033972,2]
[310170998,1704387063018,-771.00027107,0.00033972,2]
[310170999,1704387063039,-371.38972893,0.00033972,2]
[310171000,1704387063049,-963.86295663,0.00033972,2]
[310171001,1704387063060,-337.99704337,0.00033972,2]
[310171002,1704387063070,-261.28274871,0.00033972,2]
[310171003,1704387063964,177.200986,0.00025,2]
[310171004,1704387069744,21.58468973,0.00023,2]
[310171005,1704387069773,344.4417819,0.00023,2]
[310171006,1704387069798,2000.0,0.00023,2]
[310171007,1704387069822,2000.0,0.00023,2]
[310171008,1704387069856,2000.0,0.00023,2]
[310171009,1704387069881,2000.0,0.00023,2]
[310171010,1704387069903,2000.0,0.00023,2]
[310171011,1704387069932,496468.14397486,0.00023,2]
[310171012,1704387069960,7800.0,0.00023,2]
[310171013,1704387069986,7800.0,0.00023,2]
[310171014,1704387070015,412500.70838964,0.00023,2]
[310171016,1704387238469,400.0,0.0002,2]
[310171017,1704387252227,155.0,0.0002,2]
[310171018,1704387266359,970.24610947,0.00022,2]
[310171019,1704387274235,155.0,0.0002,2]
[310171020,1704387288228,155.0,0.0002,2]
[310171021,1704387310229,155.0,0.0002,2]
[310171022,1704387326571,155.0,0.0002,2]
[310171023,1704387349377,157.05628824,0.0002,2]
[310171024,1704387372638,177.200986,0.00025,2]
[310171025,1704387522515,2218.66388685,0.0002475,2]
[310171026,1704387539416,359.77442061,0.00023838,2]
[310171027,1704387570249,285.05979037,0.0002,2]
[310171028,1704387582528,280.69305271,0.00023838,2]
[310171029,1704387594077,286.91187451,0.00025897,2]
[310171030,1704387641177,591.10031511,0.000192,2]
[310171031,1704387641203,165.27426061,0.000192,2]
[310171040,1704387977396,150.3425,0.00019008,2]
[310171045,1704388064152,2336.91508864,0.00018913,2]
[310171046,1704388069743,155.64908546,0.00019008,2]
[310171047,1704388070012,533.19188241,0.00019008,2]
[310171048,1704388075347,165.46285681,0.00019008,2]
[310171049,1704388075389,305.53108644,0.00019008,2]
[310171050,1704388078300,155.0,0.0002,2]
[310171051,1704388080557,155.0,0.00018913,2]
[310171052,1704388081429,157.05628824,0.00018913,2]
[310171053,1704388083625,401.25782647,0.00018346,2]
[310171054,1704388087492,359.77442061,0.00023838,2]
[310171055,1704388092793,1204.7652434,0.0002,2]
[310171056,1704388094067,421.76044539,0.00018913,2]
[310171057,1704388094089,4507.08069123,0.00018913,2]
[310171058,1704388095002,1059.78517822,0.00018913,2]
[310171059,1704388096312,155.0,0.0002,2]
[310171060,1704388099267,847.62379048,0.00018913,2]
[310171061,1704388099542,401.25782647,0.00018346,2]
[310171062,1704388100579,280.69305271,0.00018913,2]
[310171063,1704388104166,5039.28520028,0.00018913,2]
[310171064,1704388104193,138.66179812,0.00018913,2]
[310171065,1704388105496,1026.01332322,0.0002,2]
[310171066,1704388105922,519.07286278,0.00018913,2]
[310171067,1704388106568,2218.66388685,0.00018724,2]
[310171068,1704388112656,302.48191991,0.00022,2]
[310171069,1704388116310,155.0,0.0002,2]
[310171070,1704388116655,1227.04,0.00028418,10]
[310171071,1704388119584,498.37671322,0.00018346,2]
[310171072,1704388122003,5173.62577,0.00018913,2]
[310171073,1704388132026,1267.94,0.00028418,10]
[310171074,1704388140301,155.0,0.0002,2]
[310171075,1704388142166,5164.19580149,0.00018346,2]
[310171084,1704388156316,285.05979037,0.0002,2]
[310171093,1704388172703,1056.62,0.00028417,10]
[310171094,1704388186196,880.51,0.00028417,10]
[310171096,1704388196883,733.76,0.00028417,10]
[310171098,1704388207330,611.47,0.00028417,10]
[310171099,1704388222259,509.56,0.00028417,10]
[310171103,1704388231533,-386.8264,0.00024992,2]
[310171104,1704388231547,-1280.56067998,0.00024992,2]
[310171105,1704388231559,-941.24843913,0.00024992,2]
[310171106,1704388231569,-182.95329493,0.00024993,2]
[310171107,1704388231679,-2999.05867812,0.00024993,2]
[310171108,1704388231690,-1174.57417902,0.00024993,2]
[310171109,1704388231699,-210.77031455,0.00025,2]
[310171110,1704388231710,-177.200986,0.00025,2]
[310171111,1704388231951,-166.84846607,0.00025,2]
[310171112,1704388231961,-1200.0,0.00027255,2]
[310171113,1704388231971,-418.31655925,0.00027288,2]
[310171114,1704388231981,-691.35,0.00027355,2]
[310171115,1704388231990,-200.0,0.00027944,2]
[310171116,1704388231999,-666.57,0.00027985,2]
[310171117,1704388232008,-150.0,0.00028007,2]
[310171118,1704388232018,-415.31081699,0.00028009,2]
[310171119,1704388232035,-683.19918301,0.00028009,2]
[310171120,1704388232044,-390.37950918,0.00028144,2]
[310171121,1704388232059,-723.29357829,0.00028144,2]
[310171122,1704388232084,-7232.89061859,0.00028144,2]
[310171123,1704388232096,-6214.97629394,0.00028144,2]
[310171124,1704388232105,-300.0,0.00028199,2]
[310171125,1704388232115,-150.0,0.00028199,2]
[310171126,1704388232124,-922.09494247,0.000282,2]
[310171127,1704388232133,-372.36097654,0.000282,2]
[310171128,1704388232146,-709.4372165,0.000282,2]
[310171129,1704388232163,-1918.20180696,0.000282,2]
[310171130,1704388232173,-250.0,0.0002825,2]
[310171131,1704388232183,-286.91187451,0.00028276,2]
[310171132,1704388232192,-173.76,0.00028307,2]
[310171133,1704388232202,-23900.0,0.00028329,2]
[310171134,1704388232212,-200.0,0.00028358,2]
[310171135,1704388232222,-1000.0,0.00028369,2]
[310171136,1704388232231,-499.99,0.00028369,2]
[310171137,1704388232241,-150.28978994,0.0002839,2]
[310171138,1704388232251,-295.76693216,0.00028425,2]
[310171139,1704388232262,-215.05182594,0.00028426,2]
[310171140,1704388232273,-65499.30498264,0.00028427,2]
[310171141,1704388232283,-1069.26,0.00028427,2]
[310171142,1704388232293,-14246.48,0.00028428,2]
[310171143,1704388232303,-200.0,0.00028449,2]
[310171144,1704388232313,-1653.15,0.0002847,2]
[310171145,1704388232322,-500.0,0.00028546,2]
[310171146,1704388232332,-750.0,0.00028566,2]
[310171147,1704388232343,-5462.51,0.00028566,2]
[310171148,1704388232353,-694.23,0.00028566,2]
[310171149,1704388232362,-9517.69,0.00028566,2]
[310171150,1704388232372,-228.65,0.00028568,2]
[310171151,1704388232382,-2000.0,0.00028631,2]
[310171152,1704388232392,-2569.69,0.00028648,2]
[310171153,1704388232404,-250.0,0.00028823,2]
[310171154,1704388232414,-1599.5406,0.00028875,2]
[310171155,1704388232424,-666.57,0.00028963,2]
[310171156,1704388232434,-153.77,0.00029039,2]
[310171157,1704388232444,-153.36,0.00029134,2]
[310171158,1704388232454,-153.77,0.00029147,2]
[310171159,1704388232464,-207.0,0.00029156,2]
[310171160,1704388232474,-160.61,0.00029173,2]
[310171161,1704388232484,-153.77,0.00029255,2]
[310171162,1704388232495,-6105.61,0.00029273,2]
[310171163,1704388232505,-153.36,0.00029342,2]
[310171165,1704388232515,-153.77,0.00029363,2]
[310171167,1704388232524,-812.91,0.00029466,2]
[310171169,1704388232533,-153.77,0.00029471,2]
[310171171,1704388232543,-153.36,0.0002955,2]
[310171173,1704388232552,-153.77,0.0002958,2]
[310171176,1704388232562,-691.35,0.00029619,2]
[310171177,1704388232572,-153.77,0.00029688,2]
[310171179,1704388232581,-153.36,0.00029758,2]
[310171181,1704388232593,-160.61,0.00029783,2]
[310171183,1704388232602,-153.77,0.00029796,2]
[310171185,1704388232612,-286.40291144,0.00029797,2]
[310171188,1704388232623,-262.58894495,0.00029798,2]
[310171190,1704388232633,-335.86316863,0.00029798,2]
[310171192,1704388232642,-36519.84105816,0.000298,2]
[310171194,1704388232656,-1160.51223234,0.000298,2]
[310171196,1704388232669,-9329.38,0.000298,2]
[310171198,1704388232698,-717.24099228,0.000298,2]
[310171199,1704388232710,-413.71389524,0.000298,2]
[310171200,1704388232727,-590.00213009,0.000298,2]
[310171201,1704388232740,-697.46495851,0.000298,2]
[310171202,1704388232750,-180.3,0.00029815,2]
[310171203,1704388232759,-1252.96092721,0.000299,2]
[310171219,1704388237669,-659.63830177,0.000299,2]
[310171220,1704388237680,-300.0,0.000299,2]
[310171221,1704388237691,-291.74884909,0.000299,2]
[310171222,1704388237703,-61.0531587,0.000299,2]
[310171223,1704388237713,-628.10336364,0.000299,4]
[310171224,1704388237723,-153.77,0.00029904,2]
[310171225,1704388237733,-666.57,0.00029942,2]
[310171226,1704388237743,-164.8,0.00029947,2]
[310171227,1704388237752,-150.0,0.00029947,2]
[310171228,1704388237762,-4072.08819411,0.00029947,2]
[310171229,1704388237775,-103.47180589,0.00029947,2]
[310171230,1704388237785,-153.36,0.00029966,2]
[310171231,1704388237795,-424.63,0.0002999,10]
[310171232,1704388237805,-56670.61289437,0.0003,2]
[310171233,1704388237814,-2.72114619,0.0003,2]
[310171234,1704388237841,-7796.89069071,0.0003,2]
[310171235,1704388237852,-5777.00175771,0.0003,2]
[310171236,1704388237878,-69630.6738378,0.0003,2]
[310171237,1704388237888,-20451.38023261,0.0003,4]
[310171238,1704388237900,-43996.28977299,0.0003,4]
[310171239,1704388237912,-8130.19054253,0.0003,4]
[310171240,1704388237922,-153.77,0.00030012,2]
[310171241,1704388237932,-153.77,0.0003012,2]
[310171242,1704388237942,-153.36,0.00030175,2]
[310171243,1704388237951,-153.77,0.00030228,2]
[310171244,1704388237961,-153.77,0.00030336,2]
[310171245,1704388237971,-2048.49,0.00030351,2]
[310171246,1704388237982,-153.36,0.00030383,2]
[310171247,1704388237992,-160.61,0.00030393,2]
[310171248,1704388238002,-153.77,0.00030444,2]
[310171249,1704388238012,-420.0,0.00030449,2]
[310171250,1704388238022,-153.77,0.00030552,2]
[310171251,1704388238033,-153.36,0.00030591,2]
[310171252,1704388238043,-216.21,0.0003068,2]
[310171253,1704388238053,-152.21,0.00030686,2]
[310171254,1704388238064,-628.10336359,0.00030741,5]
[310171255,1704388238073,-153.84,0.00030791,2]
[310171256,1704388238083,-153.36,0.00030799,2]
[310171257,1704388238093,-216.21,0.00030842,2]
[310171258,1704388238102,-666.57,0.0003092,2]
[310171259,1704388238112,-2079.65786082,0.00031,2]
[310171260,1704388238122,-160.61,0.00031002,2]
[310171261,1704388238132,-216.21,0.00031003,2]
[310171262,1704388238141,-153.36,0.00031007,2]
[310171263,1704388238151,-210.0,0.00031019,2]
[310171264,1704388238160,-173.76,0.00031138,2]
[310171265,1704388238170,-216.21,0.00031165,2]
[310171266,1704388238180,-153.36,0.00031215,2]
[310171267,1704388238190,-216.21,0.00031326,2]
[310171268,1704388238199,-153.36,0.00031423,2]
[310171269,1704388238208,-216.21,0.00031488,2]
[310171270,1704388238607,-2192.03363707,0.0003149,3]
[310171271,1704388238618,-3116.80192714,0.00031491,4]
[310171272,1704388238628,-628.10336359,0.00031583,5]
[310171273,1704388238637,-160.61,0.00031612,2]
[310171274,1704388238647,-153.36,0.00031631,2]
[310171275,1704388238656,-216.21,0.00031649,2]
[310171276,1704388238665,-16363.53446593,0.000317,2]
[310171277,1704388238675,-153.84,0.00031724,2]
[310171278,1704388238684,-2714.64309656,0.000318,2]
[310171279,1704388238693,-258.78,0.0003181,2]
[310171280,1704388238702,-216.21,0.00031811,2]
[310171281,1704388238711,-153.36,0.00031839,2]
[310171282,1704388238720,-691.35,0.00031883,2]
[310171283,1704388238730,-666.57,0.00031899,2]
[310171284,1704388238739,-1000.0,0.00031915,2]
[310171285,1704388238750,-207.0,0.0003196,7]
[310171286,1704388238760,-216.21,0.00031972,2]
[310171287,1704388238769,-153.36,0.00032048,2]
[310171288,1704388238779,-216.21,0.00032134,2]
[310171289,1704388238788,-160.61,0.00032222,2]
[310171290,1704388238798,-216.21,0.00032295,2]
[310171291,1704388238807,-628.10336359,0.00032424,6]
[310171292,1704388238817,-900.0,0.00032434,2]
[310171293,1704388238827,-216.21,0.00032457,2]
[310171294,1704388238836,-1363.25652784,0.00032518,2]
[310171295,1704388238846,-216.21,0.00032618,2]
[310171296,1704388238857,-153.84,0.00032658,2]
[310171297,1704388238866,-800.0,0.00032658,2]
[310171298,1704388238875,-207.5355805,0.00032665,3]
[310171299,1704388238885,-1245.213483,0.00032666,3]
[310171300,1704388238894,-227.99881961,0.00032666,2]
[310171301,1704388238903,-2799.5229,0.00032675,2]
[310171302,1704388238913,-1000.0,0.00032676,2]
[310171303,1704388238922,-62469.429,0.00032676,2]
[310171304,1704388238932,-13871.82137692,0.00032676,2]
[310171305,1704388238945,-64757.85967016,0.00032676,2]
[310171306,1704388238959,-166370.31895292,0.00032676,2]
[310171307,1704388238974,-2913.6763,0.00032676,2]
[310171308,1704388238984,-1363.25652782,0.0003272,2]
[310171309,1704388238994,-276.3364,0.00032768,2]
[310171310,1704388239004,-292.54489122,0.00032773,2]
[310171311,1704388239013,-83225.17176649,0.00032776,2]
[310171312,1704388239025,-16774.82823351,0.00032776,2]
[310171313,1704388239035,-7500.0,0.00032776,2]
[310171314,1704388239045,-33802.15351505,0.00032776,3]
[310171315,1704388239057,-1704.66645896,0.00032776,3]
[310171316,1704388239069,-645.5925653,0.00032776,3]
[310171317,1704388239097,-19402.58746069,0.00032776,3]
[310171318,1704388239107,-173.00085846,0.00032776,4]
[310171319,1704388239117,-944.00231358,0.00032777,4]
[310171320,1704388239129,-3108.79270871,0.00032777,4]
[310171321,1704388239139,-216.21,0.0003278,2]
[310171322,1704388239149,-160.61,0.00032832,2]
[310171323,1704388239160,-500.0,0.00032876,2]
[310171324,1704388239170,-500.0,0.00032876,2]
[310171325,1704388239179,-500.0,0.00032876,2]
[310171326,1704388239189,-287.6505983,0.00032876,2]
[310171327,1704388239202,-212.3494017,0.00032876,2]
[310171328,1704388239212,-191.74087862,0.00032876,2]
[310171329,1704388239237,-308.25912138,0.00032876,2]
[310171330,1704388239246,-500.0,0.00032876,2]
[310171331,1704388239256,-1000.0,0.00032876,2]
[310171332,1704388239265,-394.24087862,0.00032876,2]
[310171333,1704388239277,-105.75912138,0.00032876,2]
[310171334,1704388239287,-500.0,0.00032876,2]
[310171335,1704388239297,-378.96386517,0.00032876,2]
[310171336,1704388239308,-383.47701345,0.00032876,2]
[310171338,1704388239321,-178.77298655,0.00032876,2]
[310171340,1704388239330,-330.02202893,0.00032876,2]
[310171341,1704388239340,-500.0,0.00032876,2]
[310171342,1704388239353,-500.0,0.00032876,2]
[310171343,1704388239363,-500.0,0.00032876,2]
[310171344,1704388239374,-500.0,0.00032876,2]
[310171345,1704388239384,-500.0,0.00032876,2]
[310171346,1704388239393,-519.11314,0.00032876,2]
[310171347,1704388239405,-500.0,0.00032876,2]
[310171348,1704388239416,-465.70235099,0.00032876,2]
[310171349,1704388239428,-268.91760615,0.00032876,2]
[310171350,1704388239438,-199.46311215,0.00032876,2]
[310171351,1704388239457,-300.53688785,0.00032876,2]
[310171352,1704388239467,-500.0,0.00032876,2]
[310171353,1704388239476,-500.0,0.00032876,2]
[310171354,1704388239486,-500.0,0.00032876,2]
[310171355,1704388239496,-500.0,0.00032876,2]
[310171356,1704388239506,-127.8151903,0.00032876,2]
[310171357,1704388239523,-372.1848097,0.00032876,2]
[310171358,1704388239533,-336.67161815,0.00032876,2]
[310171359,1704388239547,-163.32838185,0.00032876,2]
[310171360,1704388239559,-546.03703666,0.00032876,2]
[310171361,1704388239569,-500.0,0.00032876,2]
[310171362,1704388239578,-130.76265374,0.00032876,2]
[310171363,1704388239592,-369.23734626,0.00032876,2]
[310171364,1704388239603,-91.7555906,0.00032876,2]
[310171365,1704388239617,-408.2444094,0.00032876,2]
[310171366,1704388239627,-500.0,0.00032876,2]
[310171367,1704388239637,-500.0,0.00032876,2]
[310171368,1704388239648,-132.84680498,0.00032876,2]
[310171369,1704388239661,-367.15319502,0.00032876,2]
[310171370,1704388239671,-394.02942647,0.00032876,2]
[310171371,1704388239684,-105.97057353,0.00032876,2]
[310171372,1704388239696,-500.0,0.00032876,2]
[310171373,1704388239706,-239.149352,0.00032876,2]
[310171374,1704388239723,-260.850648,0.00032876,2]
[310171375,1704388239734,-500.0,0.00032876,2]
[310171376,1704388239744,-500.0,0.00032876,2]
[310171377,1704388239755,-500.0,0.00032876,2]
[310171378,1704388239764,-500.0,0.00032876,2]
[310171379,1704388239775,-500.0,0.00032876,2]
[310171380,1704388239785,-500.0,0.00032876,2]
[310171381,1704388239795,-1000.0,0.00032876,2]
[310171382,1704388239805,-1000.0,0.00032876,2]
[310171383,1704388239815,-500.0,0.00032876,2]
[310171384,1704388239825,-500.0,0.00032876,2]
[310171385,1704388239834,-500.0,0.00032876,2]
[310171386,1704388239844,-500.0,0.00032876,2]
[310171387,1704388239854,-103.57598258,0.00032876,2]
[310171388,1704388239867,-396.42401742,0.00032876,2]
[310171389,1704388239878,-346.40616851,0.00032876,2]
[310171390,1704388239888,-562.96,0.00032876,2]
[310171391,1704388239898,-500.0,0.00032876,2]
[310171392,1704388239909,-500.0,0.00032876,2]
[310171393,1704388239919,-500.0,0.00032876,2]
[310171394,1704388239929,-500.0,0.00032876,2]
[310171395,1704388239939,-500.0,0.00032876,2]
[310171396,1704388239949,-500.0,0.00032876,2]
[310171397,1704388239961,-500.0,0.00032876,2]
[310171398,1704388239970,-566.17,0.00032876,2]
[310171400,1704388239980,-500.0,0.00032876,2]
[310171402,1704388239991,-500.0,0.00032876,2]
[310171404,1704388240001,-500.0,0.00032876,2]
[310171406,1704388240011,-500.0,0.00032876,2]
[310171408,1704388240021,-396.59103196,0.00032876,2]
[310171413,1704388240055,-194.58896804,0.00032876,2]
[310171415,1704388240065,-500.0,0.00032876,2]
[310171417,1704388240075,-500.0,0.00032876,2]
[310171419,1704388240084,-500.0,0.00032876,2]
[310171421,1704388240094,-186.37009657,0.00032876,2]
[310171423,1704388240107,-313.62990343,0.00032876,2]
[310171425,1704388240117,-207.65725619,0.00032876,2]
[310171428,1704388240363,-151.6990566,0.00032776,2]
[310171429,1704388240373,-292.34274381,0.00032876,2]
[310171430,1704388240384,-132.03542632,0.00032876,2]
[310171431,1704388240396,-367.96457368,0.00032876,2]
[310171432,1704388240406,-500.0,0.00032876,2]
[310171433,1704388240415,-6.9351011,0.00032876,2]
[310171434,1704388240436,-319.92321544,0.00032876,2]
[310171435,1704388240873,-173.14168346,0.00032876,2]
[310171436,1704388240883,-500.0,0.00032876,2]
[310171437,1704388240892,-500.0,0.00032876,2]
[310171438,1704388240902,-500.0,0.00032876,2]
[310171439,1704388240911,-641.19328562,0.00032876,2]
[310171440,1704388240922,-605.32,0.00032876,2]